bitfinex/quotes_ETHUSD_20240729
["timestamp","ask_amount","ask_price","bid_price","bid_amount"]
[1722214918955,0.67582007,3295.4,3295.0,3.73976263]
[1722214919105,0.55,3295.7,3295.0,3.73976263]
[1722214919106,2.42784,3295.1,3295.0,3.73976263]
[1722214919556,4.85568,3295.1,3295.0,3.73976263]
[1722214919723,5.40568,3295.1,3295.0,3.73976263]
[1722214920645,7.30749633,3295.1,3295.0,3.73976263]
[1722214921255,7.30749633,3295.1,3294.4,3.73976263]
[1722214921459,7.30749633,3295.1,3294.3,3.73976263]
[1722214921460,2.42816,3294.7,3294.3,3.73976263]
[1722214921827,5.29014275,3295.0,3294.3,3.73976263]
[1722214922024,0.55,3294.9,3294.3,3.73976263]
[1722214922234,2.97806,3294.9,3294.3,3.73976263]
[1722214922458,2.42818,3294.7,3294.3,3.73976263]
[1722214922616,2.42834,3294.5,3294.3,3.73976263]
[1722214922950,2.42818,3294.7,3294.3,3.73976263]
[1722214923119,2.42822,3294.6,3294.3,3.73976263]
[1722214924130,2.4283,3294.5,3294.3,3.73976263]
[1722214924757,2.42818,3294.7,3294.3,3.73976263]
[1722214925161,2.42836,3294.4,3294.3,3.73976263]
[1722214925369,2.42836,3294.4,3294.0,3.73976263]
[1722214925959,2.4285,3294.3,3294.0,3.73976263]
[1722214926551,2.97822,3294.6,3294.0,3.73976263]
[1722214926754,2.42792,3295.0,3294.1,2.3298]
[1722214927066,0.55,3295.0,3294.2,0.84981926]
[1722214927237,0.55,3295.0,3294.3,0.05001751]
[1722214927447,2.428,3294.9,3294.3,0.05001751]
[1722214927941,0.55,3295.0,3294.3,0.05001751]
[1722214928124,2.42771,3295.3,3294.3,0.05001751]
[1722214928125,2.97787,3295.1,3294.3,0.05001751]
[1722214928327,0.31775304,3294.9,3294.3,3.78978014]
[1722214928522,0.31775304,3294.9,3294.4,0.46395994]
[1722214928956,0.31775304,3294.9,3294.5,0.04982334]
[1722214929460,2.74579304,3294.9,3294.5,0.04982334]
[1722214929623,2.42807,3294.8,3294.5,0.04982334]
[1722214929828,2.42807,3294.8,3294.3,3.73976263]
[1722214930050,2.42807,3294.8,3294.4,0.04989125]
[1722214930551,0.55,3294.7,3294.4,0.04989125]
[1722214930873,2.42824,3294.6,3294.4,0.04989125]
[1722214931365,2.42828,3294.5,3294.4,0.04989125]
[1722214932150,2.97828,3294.5,3294.4,0.04989125]
[1722214932471,0.55,3294.5,3294.4,0.04989125]
[1722214932657,0.55,3294.7,3294.4,0.04989125]
[1722214933374,0.55,3294.7,3294.4,3.78965388]
[1722214933570,0.55,3294.8,3294.4,3.78965388]
[1722214933746,2.97811,3294.8,3294.4,3.78965388]
[1722214933948,2.42814,3294.7,3294.4,3.78965388]
[1722214935241,2.42824,3294.6,3294.4,3.78965388]
[1722214935535,2.42824,3294.6,3294.4,3.73976263]
[1722214935939,2.42824,3294.6,3294.5,0.04988167]
[1722214936436,0.55,3294.8,3294.5,0.04988167]
[1722214936984,2.97806,3294.8,3294.5,0.04988167]
[1722214937962,0.55,3294.8,3294.5,0.04988167]
[1722214939184,0.31775304,3294.9,3294.6,2.42815]
[1722214939486,0.31775304,3294.9,3294.7,2.47783415]
[1722214939781,0.31775304,3294.9,3294.7,0.04974415]
[1722214944557,2.42806,3294.8,3294.7,0.04974415]
[1722214944761,5.40612,3294.8,3294.7,0.04974415]
[1722214945069,5.9785073,3294.8,3294.7,0.04974415]
[1722214945274,2.42827,3294.6,3293.9,3.73976263]
[1722214945494,2.42827,3294.6,3294.0,0.05016979]
[1722214945796,2.42834,3294.5,3294.0,0.05016979]
[1722214945947,2.42844,3294.3,3294.0,0.05016979]
[1722214946148,0.31778705,3294.5,3294.0,3.78993242]
[1722214946149,2.74613705,3294.5,3294.0,3.78993242]
[1722214949347,2.42836,3294.4,3294.0,3.78993242]
[1722214950997,2.94579671,3294.4,3294.0,3.78993242]
[1722214951286,2.94579671,3294.4,3294.0,0.05016979]
[1722214951487,2.42853,3294.2,3294.0,0.05016979]
[1722214953393,2.42858,3294.1,3294.0,0.05016979]
[1722214953566,2.42848,3294.3,3294.0,0.05016979]
[1722214954606,0.51743671,3294.4,3294.0,0.05016979]
[1722214954791,0.55,3294.3,3294.0,0.05016979]
[1722214956984,2.22219838,3294.5,3294.0,0.05016979]
[1722214957196,4.65049838,3294.5,3294.0,3.78993242]
[1722214957511,1.90441133,3294.4,3294.0,3.78993242]
[1722214957709,4.65049838,3294.5,3294.0,3.78993242]
[1722214958068,1.90441133,3294.4,3294.0,3.78993242]
[1722214958774,1.90441133,3294.3,3294.0,3.78993242]
[1722214959009,2.42841,3294.4,3294.0,3.78993242]
[1722214959216,1.90654652,3294.3,3294.0,3.78993242]
[1722214959576,2.42841,3294.4,3294.0,3.78993242]
[1722214959774,1.90669796,3294.3,3294.0,3.78993242]
[1722214960316,1.90669796,3294.2,3294.0,3.78993242]
[1722214960896,1.90669796,3294.3,3294.0,3.78993242]
[1722214961487,0.31778705,3294.5,3294.0,3.78993242]
[1722214961673,1.90662235,3294.3,3294.0,3.78993242]
[1722214962089,1.90662235,3294.2,3294.0,3.78993242]
[1722214963187,1.90662235,3294.3,3294.0,0.05016979]
[1722214963531,1.90662235,3294.2,3294.0,0.05016979]
[1722214964235,1.90662235,3294.3,3294.0,0.05016979]
[1722214965286,1.90662235,3294.2,3294.0,0.05016979]
[1722214965521,0.31778705,3294.5,3294.0,0.05016979]
[1722214965686,1.90700063,3294.3,3294.0,0.05016979]
[1722214966087,1.90700063,3294.2,3294.0,0.05016979]
[1722214966683,1.90700063,3294.1,3294.0,0.05016979]
[1722214966888,1.90700063,3294.2,3294.0,0.05016979]
[1722214967327,2.22497348,3294.2,3294.0,0.05016979]
[1722214967500,4.33575805,3294.1,3294.0,0.05016979]
[1722214967702,2.42858,3294.1,3294.0,0.05016979]
[1722214968119,4.33552757,3294.1,3294.0,0.05016979]
[1722214968692,2.42858,3294.1,3294.0,0.05016979]
[1722214969039,2.42858,3294.1,3294.0,3.78993242]
[1722214969040,4.33478759,3294.1,3294.0,3.78993242]
[1722214969390,4.33437962,3294.1,3294.0,3.78993242]
[1722214971890,2.42858,3294.1,3294.0,3.78993242]
[1722214972508,4.33334503,3294.1,3294.0,3.78993242]
[1722214972916,7.46988408,3294.1,3294.0,3.78993242]
[1722214973136,8.33734492,3294.1,3294.0,3.78993242]
[1722214973430,6.43037326,3294.1,3294.0,3.78993242]
[1722214975037,6.43037326,3294.1,3294.0,0.05016979]
[1722214975532,2.42887,3293.7,3293.6,3.73976263]
[1722214975698,2.97887,3293.7,3293.6,3.79038436]
[1722214976300,4.88183444,3293.7,3293.6,3.79038436]
[1722214976702,1.90296444,3293.7,3293.6,3.79038436]
[1722214976899,4.33178444,3293.8,3293.6,4.85438436]
[1722214977143,4.88178444,3293.8,3293.6,4.85438436]
[1722214977438,2.45296444,3293.8,3293.6,4.85438436]
[1722214977642,0.55,3293.8,3293.6,4.85438436]
[1722214980144,2.97882,3293.8,3293.6,3.79038436]
[1722214980297,4.88151186,3293.8,3293.6,3.79038436]
[1722214980742,5.40769,3293.8,3293.6,3.79038436]
[1722214980914,4.88151186,3293.8,3293.6,3.79038436]
[1722214981241,4.33142739,3293.7,3293.6,3.79038436]
[1722214981449,2.45255739,3293.8,3293.6,3.79038436]
[1722214981634,4.33142739,3293.7,3293.6,3.79038436]
[1722214981837,1.03812474,3293.8,3293.6,3.79038436]
[1722214981838,2.94068213,3293.8,3293.6,3.79038436]
[1722214982139,0.55,3293.8,3293.6,4.85438436]
[1722214982751,0.86781806,3293.8,3293.6,4.85438436]
[1722214983248,10.70041,3293.7,3293.6,0.05062173]
[1722214983547,10.70041,3293.7,3292.5,1.064]
[1722214983548,2.4294,3293.0,3292.5,1.064]
[1722214983845,2.4295,3292.9,3292.5,1.064]
[1722214984165,2.42954,3292.8,3292.5,1.064]
[1722214984301,2.42976,3292.5,3292.3,1.064]
[1722214984508,2.42955,3292.8,3292.3,1.064]
[1722214984707,2.42942,3293.0,3292.0,2.4955]
[1722214984708,0.55,3292.7,3292.6,1.064]
[1722214985218,2.42961,3292.7,3292.6,1.064]
[1722214985419,2.42927,3293.2,3292.6,1.064]
[1722214985748,2.97933,3293.1,3292.8,1.064]
[1722214986248,2.42946,3292.9,3292.8,1.064]
[1722214986754,2.42954,3292.8,3292.6,1.064]
[1722214986959,2.42947,3292.9,3292.8,0.04967776]
[1722214987156,2.42947,3292.9,3292.7,0.04974574]
[1722214987311,2.42947,3292.9,3292.8,0.04967776]
[1722214987659,2.42954,3292.8,3292.2,2.3204]
[1722214987966,2.42954,3292.8,3292.2,2.80814]
[1722214988243,2.42976,3292.5,3292.2,2.3204]
[1722214988557,2.42984,3292.4,3291.9,2.3310509]
[1722214989105,2.42991,3292.3,3291.9,2.3310509]
[1722214989341,2.42991,3292.3,3291.9,0.0227509]
[1722214989654,2.42999,3292.2,3291.9,0.0227509]
[1722214990513,0.48599,3292.2,3291.9,0.0227509]
[1722214990745,2.43013,3292.0,3291.9,0.0227509]
[1722214991135,2.98013,3292.0,3291.9,0.0227509]
[1722214994254,0.55,3292.0,3291.9,0.0227509]
[1722214994406,2.43006,3292.1,3291.9,0.0227509]
[1722214994847,2.43,3292.2,3291.9,0.0227509]
[1722214995050,0.55,3292.1,3291.9,0.0227509]
[1722214995681,0.55,3292.3,3291.9,0.0227509]
[1722214996028,2.97991,3292.3,3291.9,0.0227509]
[1722214996222,0.55,3292.3,3291.9,0.0227509]
[1722214996423,2.97984,3292.4,3291.9,0.0227509]
[1722214996624,2.42977,3292.5,3291.9,2.4416509]
[1722214998053,0.31779945,3292.4,3291.9,2.4416509]
[1722214998213,0.59255639,3292.4,3291.9,0.0227509]
[1722214998408,2.42998,3292.2,3291.9,0.0227509]
[1722214998722,0.55,3292.3,3291.9,0.0227509]
[1722214999140,2.43006,3292.1,3291.9,0.0227509]
[1722214999345,0.298006,3292.1,3291.9,0.0227509]
[1722214999570,3.29513734,3292.3,3291.9,0.0227509]
[1722214999790,0.86518734,3292.3,3291.9,0.0227509]
[1722215000157,0.55,3292.3,3291.9,0.0227509]
[1722215001785,0.31779945,3292.4,3291.9,3.76251353]
[1722215001998,0.31779945,3292.4,3292.0,0.05079717]
[1722215002850,2.74762945,3292.4,3292.0,0.05079717]
[1722215003386,0.31779945,3292.4,3292.0,0.05079717]
[1722215006654,0.37055907,3292.4,3292.0,0.05079717]
[1722215007282,0.37055907,3292.4,3292.3,1.066]
[1722215007781,0.37055907,3292.4,3292.3,1.11653832]
[1722215008291,3.08042098,3292.4,3292.3,0.05053832]
[1722215008589,2.42992,3292.3,3292.1,4.80576263]
[1722215008792,2.42998,3292.2,3292.1,3.73976263]
[1722215010285,4.85996,3292.2,3292.1,3.73976263]
[1722215010494,6.23670914,3292.2,3292.1,3.73976263]
[1722215011091,11.98180249,3292.2,3292.1,3.73976263]
[1722215012061,15.47778249,3292.2,3292.1,3.73976263]
[1722215012253,17.74888249,3292.2,3292.1,3.73976263]
[1722215012752,15.31890249,3292.2,3292.1,3.73976263]
[1722215013183,14.25290249,3292.2,3292.1,3.73976263]
[1722215013700,7.29039,3292.0,3291.9,0.0227509]
[1722215013903,8.41026,3292.0,3291.9,0.0227509]
[1722215014388,8.72804564,3292.0,3291.9,0.0227509]
[1722215018799,0.86778564,3292.0,3291.9,0.0227509]
[1722215018998,3.29791564,3292.0,3291.9,0.0227509]
[1722215019961,3.29791564,3292.0,3291.9,0.07378059]
[1722215020154,0.86778564,3292.0,3291.9,0.07378059]
[1722215021898,0.31778564,3292.0,3291.9,2.44338059]
[1722215022058,0.31778564,3292.0,3291.9,2.94361865]
[1722215023162,0.31778564,3292.0,3291.9,5.37381865]
[1722215023599,3.03,3292.8,3292.1,2.43004]
[1722215023910,0.31770632,3292.7,3292.3,4.98889]
[1722215024259,0.31770632,3292.7,3292.4,0.05063653]
[1722215024576,0.31770632,3292.7,3292.6,4.71919]
[1722215024772,0.31770632,3292.7,3292.6,8.45895263]
[1722215025004,0.31770632,3292.7,3292.6,10.93914318]
[1722215025206,2.42866,3294.0,3293.0,2.42933]
[1722215025361,2.42866,3294.0,3293.2,2.559]
[1722215025759,2.42866,3294.0,3293.3,0.04985857]
[1722215025995,2.42866,3294.0,3293.3,2.53025857]
[1722215026999,2.42874,3293.9,3293.3,2.53025857]
[1722215027202,2.42893,3293.7,3293.3,0.04985857]
[1722215027359,2.42866,3294.0,3293.3,0.04985857]
[1722215027559,3.0,3294.1,3293.2,2.559]
[1722215027764,2.42876,3293.9,3293.4,0.04965192]
[1722215027999,2.42876,3293.9,3293.2,3.67473726]
[1722215028000,2.42888,3293.7,3293.2,2.559]
[1722215028214,2.42888,3293.7,3293.5,0.04958397]
[1722215028501,0.55,3293.8,3293.0,3.73976263]
[1722215028502,2.97895,3293.6,3293.0,3.73976263]
[1722215028804,5.22077627,3294.1,3293.2,2.559]
[1722215029113,5.22077627,3294.1,3293.3,2.42912]
[1722215029114,0.55,3294.0,3293.3,2.42912]
[1722215029463,3.31765023,3294.2,3293.3,2.42912]
[1722215029464,0.31765023,3294.2,3293.6,2.559]
[1722215029908,0.31765023,3294.2,3293.6,5.2128]
[1722215030074,4.64877627,3294.9,3294.0,2.559]
[1722215030279,2.42806,3294.8,3294.0,6.29876263]
[1722215030927,2.42801,3294.9,3294.1,3.73976263]
[1722215031458,2.42792,3295.0,3294.1,3.73976263]
[1722215031666,2.670712,3295.0,3294.1,3.73976263]
[1722215032020,2.670712,3295.0,3294.4,2.559]
[1722215032455,0.242792,3295.0,3294.5,0.04844228]
[1722215032652,3.03,3295.4,3294.5,0.04844228]
[1722215033020,5.45767,3295.4,3294.5,0.04844228]
[1722215033231,2.4277,3295.3,3294.5,0.04844228]
[1722215033428,3.03,3295.4,3294.5,0.04844228]
[1722215033832,2.42785,3295.1,3294.5,0.04844228]
[1722215034027,2.42776,3295.3,3294.5,0.04844228]
[1722215034233,2.42793,3295.0,3294.5,0.04844228]
[1722215034618,2.42793,3295.0,3294.5,3.78820491]
[1722215035049,2.42785,3295.1,3294.5,3.78820491]
[1722215035228,3.575756,3295.4,3294.5,3.78820491]
[1722215035229,2.42807,3294.8,3294.5,3.78820491]
[1722215036662,2.97792,3295.0,3294.5,3.78820491]
[1722215036663,2.42814,3294.7,3294.5,3.78820491]
[1722215036959,2.42799,3294.9,3294.5,3.78820491]
[1722215037482,0.55,3295.0,3294.5,3.78820491]
[1722215037483,2.97796,3295.0,3294.5,3.78820491]
[1722215037697,0.55,3294.9,3294.5,3.78820491]
[1722215039341,0.55,3294.9,3294.6,2.3618]
[1722215039786,0.55,3294.9,3294.7,0.0464694]
[1722215039939,0.55,3294.9,3294.7,3.78623203]
[1722215040142,2.42771,3295.3,3294.7,3.78623203]
[1722215040344,0.55,3295.2,3294.7,3.78623203]
[1722215041064,2.97777,3295.2,3294.7,3.78623203]
[1722215041257,2.42795,3295.0,3294.7,3.78623203]
[1722215041583,3.6331226,3295.2,3294.7,3.78623203]
[1722215041584,2.42799,3294.9,3294.7,3.78623203]
[1722215041885,2.42788,3295.1,3294.7,3.78623203]
[1722215042080,1.2053526,3295.2,3294.7,3.78623203]
[1722215042249,0.55,3295.2,3294.7,3.78623203]
[1722215042449,2.97777,3295.2,3294.7,3.78623203]
[1722215042644,2.42785,3295.1,3294.7,3.78623203]
[1722215043077,0.55,3295.2,3294.7,3.78623203]
[1722215043295,2.97775,3295.3,3294.7,3.78623203]
[1722215043444,2.97775,3295.3,3294.8,8.71246263]
[1722215043645,2.42777,3295.2,3294.8,8.71246263]
[1722215044052,2.42792,3295.0,3294.9,0.04631825]
[1722215044279,2.42777,3295.2,3294.9,0.04631825]
[1722215044446,2.42785,3295.1,3294.9,0.04631825]
[1722215045398,2.42777,3295.2,3294.9,0.04631825]
[1722215045399,2.42792,3295.0,3294.9,0.04631825]
[1722215046308,2.42777,3295.2,3294.9,0.04631825]
[1722215046486,2.97771,3295.3,3294.9,0.04631825]
[1722215047510,2.42778,3295.2,3294.9,0.04631825]
[1722215047861,0.55,3295.3,3294.9,0.04631825]
[1722215048603,2.42778,3295.2,3294.9,0.04631825]
[1722215049393,2.42785,3295.1,3294.9,3.78608088]
[1722215049703,4.85584,3295.0,3294.9,3.78608088]
[1722215049869,5.40584,3295.0,3294.9,3.78608088]
[1722215051214,7.83376,3295.0,3294.9,3.78608088]
[1722215051416,7.83376,3295.0,3294.9,3.73976263]
[1722215051582,7.83376,3295.0,3294.9,3.78601096]
[1722215051906,8.6469145,3295.0,3294.9,3.78601096]
[1722215053093,6.53380605,3295.0,3294.9,3.78601096]
[1722215053615,11.42292605,3295.0,3294.9,3.78601096]
[1722215053820,11.99500605,3295.0,3294.9,3.73976263]
[1722215054030,11.99500605,3295.0,3294.9,3.78601096]
[1722215054189,9.53380605,3295.0,3294.9,3.78601096]
[1722215054571,6.2189945,3295.0,3294.9,3.78601096]
[1722215054767,6.2189945,3295.0,3294.9,3.73976263]
[1722215055116,6.53416029,3295.0,3294.9,3.78601096]
[1722215055427,6.53416029,3295.0,3294.9,0.04624833]
[1722215055719,2.42839,3294.4,3294.2,3.73976263]
[1722215055878,2.42841,3294.4,3294.2,3.73976263]
[1722215056230,4.85682,3294.4,3294.3,0.04665575]
[1722215056369,4.85682,3294.4,3294.2,3.73976263]
[1722215056570,2.97843,3294.3,3294.2,3.73976263]
[1722215058013,0.55,3294.3,3294.2,3.73976263]
[1722215058385,2.97843,3294.3,3294.2,3.73976263]
[1722215059173,0.55,3294.3,3294.2,3.73976263]
[1722215059378,0.55,3294.5,3294.2,3.73976263]
[1722215059600,2.42843,3294.3,3294.2,3.73976263]
[1722215059914,2.97843,3294.3,3294.2,3.73976263]
[1722215061424,2.97843,3294.3,3294.1,3.73976263]
[1722215061627,2.42851,3294.2,3294.1,3.73976263]
[1722215061811,2.42851,3294.2,3294.1,3.78679475]
[1722215064117,0.55,3294.3,3294.1,3.78679475]
[1722215064320,2.97841,3294.4,3294.1,3.78679475]
[1722215065425,2.42844,3294.3,3294.1,3.78679475]
[1722215065988,2.42851,3294.2,3294.1,3.78679475]
[1722215066717,2.48132222,3294.2,3294.1,3.78679475]
[1722215067394,2.42851,3294.2,3294.1,3.78679475]
[1722215067898,0.31516579,3295.0,3294.2,2.2697]
[1722215068104,2.42818,3294.7,3294.2,2.2697]
[1722215068304,2.42818,3294.7,3294.3,0.04689628]
[1722215068715,2.42802,3294.9,3294.2,2.2697]
[1722215069020,2.42792,3295.0,3294.3,0.04687921]
[1722215069250,2.74522452,3295.4,3294.8,2.559]
[1722215069381,2.42767,3295.4,3294.8,2.559]
[1722215069581,2.4277,3295.3,3294.9,0.04644278]
[1722215069923,2.4277,3295.3,3294.8,2.559]
[1722215070119,2.42779,3295.2,3294.8,2.559]
[1722215070320,2.42779,3295.2,3294.5,2.4651]
[1722215070321,4.85562,3295.2,3294.9,0.04644278]
[1722215070626,2.42775,3295.3,3294.5,2.4651]
[1722215070781,2.42775,3295.3,3294.6,0.57222227]
[1722215071217,2.42756,3295.5,3294.6,0.57222227]
[1722215071440,2.42756,3295.5,3294.8,2.559]
[1722215071622,2.42756,3295.5,3294.9,0.04628242]
[1722215071809,3.03,3295.6,3295.0,2.3749]
[1722215072006,3.03,3295.6,3295.1,0.04612447]
[1722215072814,5.45748,3295.6,3295.1,0.04612447]
[1722215073926,3.03,3295.6,3295.1,0.04612447]
[1722215074341,5.45752,3295.6,3295.1,0.04612447]
[1722215074900,2.42768,3295.4,3295.1,0.04612447]
[1722215075060,2.42777,3295.3,3295.1,0.04612447]
[1722215075236,2.42768,3295.4,3294.8,2.559]
[1722215075237,2.42778,3295.2,3294.8,2.559]
[1722215075593,2.42778,3295.2,3294.9,0.0462142]
[1722215076122,2.42768,3295.4,3294.9,0.0462142]
[1722215076598,2.42777,3295.2,3294.9,0.0462142]
[1722215076766,0.55,3295.3,3294.9,0.0462142]
[1722215077139,7.6802988,3295.6,3294.9,0.0462142]
[1722215077362,2.42755,3295.5,3294.9,0.58706138]
[1722215077576,2.42763,3295.4,3294.9,0.58706138]
[1722215077778,2.4277,3295.3,3294.9,0.0462142]
[1722215078888,4.65096709,3295.5,3294.9,0.0462142]
[1722215079083,2.42755,3295.5,3294.9,0.0462142]
[1722215079676,2.42763,3295.4,3294.9,0.0462142]
[1722215080873,2.42755,3295.5,3294.9,0.0462142]
[1722215080874,2.4277,3295.3,3294.9,0.0462142]
[1722215081680,2.42755,3295.5,3294.9,0.0462142]
[1722215081996,2.42742,3295.7,3295.0,0.26052142]
[1722215082149,0.55,3295.6,3295.0,0.26052142]
[1722215082503,0.55,3295.6,3295.1,0.04600338]
[1722215082653,2.42756,3295.5,3295.1,0.04600338]
[1722215084076,2.97748,3295.6,3295.1,0.04600338]
[1722215084555,2.42755,3295.5,3295.1,0.04600338]
[1722215086780,2.42755,3295.5,3294.8,2.559]
[1722215087123,2.42755,3295.5,3294.9,0.04613915]
[1722215087324,2.42763,3295.4,3294.9,0.04613915]
[1722215088419,2.97748,3295.6,3294.9,0.04613915]
[1722215089618,2.42735,3295.8,3294.9,0.04613915]
[1722215089822,2.4272,3296.0,3295.2,2.559]
[1722215089823,4.64919692,3296.0,3295.2,2.559]
[1722215089990,7.64919692,3296.0,3295.3,0.04584545]
[1722215090180,2.42726,3295.9,3295.3,0.04584545]
[1722215091036,0.55,3295.8,3295.3,0.04584545]
[1722215091333,2.22289468,3296.1,3295.7,2.559]
[1722215091487,3.0,3296.3,3295.7,2.559]
[1722215091688,2.42704,3296.2,3295.8,0.04540555]
[1722215092086,2.42704,3296.2,3295.7,2.559]
[1722215092285,2.42698,3296.3,3295.9,0.04533769]
[1722215092484,2.42698,3296.3,3295.9,3.73976263]
[1722215092679,2.97704,3296.2,3296.0,0.04523745]
[1722215093084,0.55,3296.2,3295.9,3.73976263]
[1722215093323,0.55,3296.2,3296.1,0.04516961]
[1722215093524,0.55,3296.2,3296.0,0.04523745]
[1722215093754,0.55,3296.2,3296.1,0.04516961]
[1722215093958,2.42696,3296.3,3296.1,0.04516961]
[1722215094142,2.42684,3296.5,3295.9,6.16616263]
[1722215094347,0.55,3296.4,3296.2,0.04510177]
[1722215094643,0.55,3296.4,3296.3,0.04503393]
[1722215094955,0.55,3296.4,3295.9,6.16616263]
[1722215095156,2.97688,3296.4,3296.3,0.04503393]
[1722215095360,2.97688,3296.4,3295.9,6.16616263]
[1722215095656,2.97688,3296.4,3295.9,7.03867889]
[1722215095813,2.97688,3296.4,3296.0,0.04523745]
[1722215096014,2.97688,3296.4,3295.9,7.03867889]
[1722215096270,0.55,3296.4,3296.0,0.04523745]
[1722215096444,2.4269,3296.4,3295.9,7.03867889]
[1722215096642,2.42669,3296.7,3296.1,2.559]
[1722215096957,2.42678,3296.6,3296.2,0.04504381]
[1722215098559,5.42655,3296.9,3296.2,0.04504381]
[1722215098560,2.42667,3296.7,3296.2,0.04504381]
[1722215098947,2.42663,3296.8,3296.2,0.04504381]
[1722215099161,2.42663,3296.8,3296.3,2.472]
[1722215099456,4.85296,3297.0,3296.4,0.29661253]
[1722215099661,2.97654,3296.9,3296.4,4.03637516]
[1722215100387,0.55,3296.9,3296.4,4.03637516]
[1722215100565,2.42675,3296.6,3296.4,3.78467078]
[1722215100877,0.55,3296.9,3296.4,3.78467078]
[1722215100878,4.85362,3296.5,3296.4,3.78467078]
[1722215101028,4.85362,3296.5,3296.4,3.73976263]
[1722215101248,5.40362,3296.5,3296.4,3.78460261]
[1722215102359,8.613462,3296.5,3296.4,3.78460261]
[1722215102562,8.613462,3296.5,3296.4,0.04483998]
[1722215102882,8.613462,3296.5,3295.7,3.73976263]
[1722215102883,2.42732,3295.9,3295.7,3.73976263]
[1722215103064,2.42732,3295.9,3295.8,0.04371299]
[1722215103276,2.42732,3295.9,3295.7,3.73976263]
[1722215103455,2.42732,3295.9,3295.8,0.04371299]
[1722215103656,2.42732,3295.9,3295.7,3.73976263]
[1722215103980,2.42732,3295.9,3295.8,0.04371299]
[1722215104312,2.42732,3295.9,3295.7,3.73976263]
[1722215104313,4.85466,3295.8,3295.7,3.73976263]
[1722215104599,5.40466,3295.8,3295.7,3.73976263]
[1722215105098,2.97733,3295.8,3295.7,3.73976263]
[1722215105714,2.4272,3296.0,3295.7,3.73976263]
[1722215105997,2.42691,3296.4,3295.7,3.73976263]
[1722215106209,2.97697,3296.3,3295.7,6.16536263]
[1722215106438,2.42702,3296.3,3296.0,2.559]
[1722215106816,2.42709,3296.2,3296.1,0.04350945]
[1722215107542,2.42709,3296.2,3296.0,2.559]
[1722215107697,2.42709,3296.2,3295.7,6.79523889]
[1722215107698,2.42711,3296.1,3295.7,6.79523889]
[1722215108120,2.42691,3296.4,3295.8,0.93542389]
[1722215108121,2.42701,3296.3,3295.8,0.93542389]
[1722215108693,2.42704,3296.2,3295.8,0.93542389]
[1722215109018,2.42692,3296.4,3295.8,4.67518652]
[1722215109222,2.42681,3296.6,3296.0,2.559]
[1722215109406,2.42681,3296.6,3296.0,7.02218128]
[1722215109935,2.42681,3296.6,3296.1,2.368]
[1722215110631,2.42682,3296.5,3296.1,2.368]
[1722215110833,2.42691,3296.4,3296.1,2.368]
[1722215111001,2.42691,3296.4,3296.0,7.02218128]
[1722215111002,2.42711,3296.1,3296.0,3.73976263]
[1722215111763,2.42711,3296.1,3295.8,3.73976263]
[1722215111764,2.42725,3295.9,3295.8,3.73976263]
[1722215111892,2.42724,3296.0,3295.5,3.73976263]
[1722215111893,2.42737,3295.8,3295.5,3.73976263]
[1722215114758,2.42741,3295.7,3295.5,3.73976263]
[1722215116310,2.42747,3295.6,3295.5,3.73976263]
[1722215116660,4.85494,3295.6,3295.5,3.73976263]
[1722215117654,7.85114,3295.6,3295.5,3.73976263]
[1722215117872,7.85114,3295.6,3294.8,5.0145]
[1722215117873,2.42777,3295.2,3295.1,3.73976263]
[1722215118150,2.42777,3295.2,3294.8,12.2945]
[1722215118151,2.42791,3295.1,3294.9,3.73976263]
[1722215118764,2.224363,3295.5,3294.9,3.73976263]
[1722215118765,2.42775,3295.3,3294.9,3.73976263]
[1722215119273,2.42757,3295.5,3294.9,3.73976263]
[1722215119555,2.42741,3295.7,3295.2,2.559]
[1722215119853,2.42748,3295.6,3295.2,2.559]
[1722215120074,3.0,3295.7,3295.2,2.559]
[1722215120251,2.42748,3295.6,3295.3,2.4972]
[1722215121870,2.4274,3295.7,3295.4,0.04403715]
[1722215122459,2.42747,3295.6,3295.4,0.04403715]
[1722215122933,2.42733,3295.8,3295.4,0.04403715]
[1722215123135,4.65206322,3295.9,3295.4,0.04403715]
[1722215123433,0.55,3295.8,3295.4,3.78379978]
[1722215124130,2.97733,3295.8,3295.4,3.78379978]
[1722215125443,2.42747,3295.6,3295.4,3.78379978]
[1722215126253,2.42755,3295.5,3295.4,3.78379978]
[1722215126650,2.42755,3295.5,3295.4,0.04403715]
[1722215129273,4.65435427,3295.8,3295.4,0.04403715]
[1722215129595,2.42733,3295.8,3295.4,0.04403715]
[1722215129765,2.42745,3295.7,3295.4,0.04403715]
[1722215129964,2.42745,3295.7,3295.4,0.92226713]
[1722215130399,2.42755,3295.5,3295.4,0.04403715]
[1722215131717,2.42755,3295.5,3295.4,0.10126966]
[1722215132596,2.48037312,3295.5,3295.4,3.84103229]
[1722215133001,0.05282312,3295.5,3295.4,3.84103229]
[1722215133200,0.05282312,3295.5,3295.4,6.27693229]
[1722215133439,0.05282312,3295.5,3295.4,7.16052552]
[1722215137737,4.65207975,3296.2,3295.4,7.16052552]
[1722215138042,2.42691,3296.4,3295.7,2.559]
[1722215138043,2.22503975,3296.3,3295.7,2.559]
[1722215138348,4.65180975,3296.6,3296.1,2.559]
[1722215138635,2.42686,3296.5,3296.2,0.10066027]
[1722215140562,2.42689,3296.4,3296.2,0.10066027]
[1722215141318,2.42679,3296.6,3296.2,0.10066027]
[1722215141514,2.97685,3296.5,3296.2,0.10066027]
[1722215141811,2.42685,3296.5,3296.2,0.10066027]
[1722215142809,2.42669,3296.7,3296.2,0.10066027]
[1722215142810,4.85341,3296.7,3296.2,0.10066027]
[1722215143017,2.97675,3296.6,3296.2,0.10066027]
[1722215143351,2.42661,3296.8,3296.2,0.3666263]
[1722215145141,2.47932004,3297.0,3296.2,0.3666263]
[1722215145341,2.47932004,3297.0,3296.3,2.2556]
[1722215145342,0.55,3296.9,3296.3,2.2556]
[1722215145536,2.97657,3296.9,3296.4,0.26222263]
[1722215145758,2.42661,3296.8,3296.4,0.3625874]
[1722215146063,2.42661,3296.8,3296.4,0.10036477]
[1722215146425,2.42667,3296.7,3296.4,0.10036477]
[1722215147471,2.42675,3296.6,3296.4,0.10036477]
[1722215147670,2.42675,3296.6,3296.4,3.73976263]